bitfinex-derivatives/quotes_SOLF0:USTF0_20251219
["timestamp","ask_amount","ask_price","bid_price","bid_amount"]
[1766141689376,3.34,124.82,124.74,6.51497427]
[1766141689780,0.05469938,124.79,124.77,0.05688788]
[1766141691592,0.05469938,124.79,124.77,7.27388788]
[1766141691887,3.34,124.81,124.77,7.27388788]
[1766141692083,3.34,124.81,124.77,0.05688788]
[1766141692796,0.05891235,124.8,124.77,0.05688788]
[1766141699496,3.39891235,124.8,124.77,0.05688788]
[1766141701306,0.05891235,124.8,124.77,0.05688788]
[1766141702100,0.05891235,124.8,124.77,7.27398788]
[1766141703711,3.34,124.84,124.78,7.2163]
[1766141703902,3.34,124.84,124.78,6.51467753]
[1766141704802,0.06004861,124.82,124.8,0.05520973]
[1766141709813,0.06004861,124.82,124.77,6.51467753]
[1766141710820,0.06004861,124.82,124.78,0.05058344]
[1766141711614,0.06004861,124.82,124.79,7.216]
[1766141714023,3.22,124.86,124.82,7.2142]
[1766141715222,0.06015787,124.85,124.83,0.05214685]
[1766141719220,3.40015787,124.85,124.83,0.00214685]
[1766141720217,3.40015787,124.85,124.79,61.07037753]
[1766141721127,3.40015787,124.85,124.81,0.05300546]
[1766141721427,3.34,124.84,124.77,7.2167]
[1766141722323,0.05960037,124.82,124.79,0.05086365]
[1766141733128,0.05960037,124.82,124.79,7.26666365]
[1766141734332,3.24,124.85,124.8,7.2153]
[1766141734720,3.24,124.85,124.8,13.72997753]
[1766141735035,3.24,124.85,124.8,7.2153]
[1766141735235,3.24,124.84,124.76,61.30884051]
[1766141735422,0.06039207,124.81,124.79,0.06150626]
[1766141736235,3.30039207,124.81,124.75,0.07]
[1766141736636,3.30039207,124.81,124.76,7.2174]
[1766141737138,3.30039207,124.81,124.77,0.05202372]
[1766141737636,0.06039207,124.81,124.78,0.07]
[1766141737838,3.24,124.85,124.78,6.58467753]
[1766141738428,3.24,124.85,124.78,0.07]
[1766141738834,0.05488591,124.83,124.8,0.06077378]
[1766141743331,0.05488591,124.83,124.8,7.27587378]
[1766141744438,0.05488591,124.83,124.81,7.2148]
[1766141744635,3.24,124.86,124.81,13.72947753]
[1766141744835,50.48,124.88,124.81,6.51467753]
[1766141745037,3.24,124.88,124.83,13.72827753]
[1766141745629,0.05239336,124.87,124.84,0.05343228]
[1766141748932,3.29239336,124.87,124.84,0.05343228]
[1766141750133,3.29239336,124.87,124.84,0.00343228]
[1766141760242,7.26389336,124.87,124.81,0.06]
[1766141760449,3.24,124.86,124.8,0.06]
[1766141761046,3.24,124.85,124.79,7.2155]
[1766141761247,3.24,124.85,124.79,7.2755]
[1766141761546,0.05713112,124.83,124.81,0.06009728]
[1766141779572,10.4515,124.87,124.81,0.12009728]
[1766141779880,3.24,124.86,124.81,0.12009728]
[1766141780570,0.05513875,124.85,124.81,0.12009728]
[1766141781973,3.29513875,124.85,124.81,0.12009728]
[1766141784180,0.05513875,124.85,124.81,0.06009728]
[1766141791188,3.29513875,124.85,124.81,0.06009728]
[1766141795389,3.29513875,124.85,124.81,7.27499728]
[1766141795687,0.05513875,124.85,124.81,0.06009728]
[1766141795891,0.05513875,124.85,124.82,7.2143]
[1766141796890,3.31513875,124.85,124.81,0.06009728]
[1766141797588,3.31513875,124.85,124.81,9.728e-05]
[1766141798293,3.31513875,124.85,124.78,14.68676443]
[1766141798294,3.26,124.84,124.78,14.68676443]
[1766141798685,3.26,124.83,124.77,7.47056443]
[1766141798894,3.26,124.83,124.76,14.68796443]
[1766141799089,3.26,124.83,124.76,7.2174]
[1766141799286,3.26,124.8,124.78,0.00099095]
[1766141811194,0.06035201,124.81,124.78,0.00099095]
[1766141811695,3.32035201,124.81,124.78,0.00099095]
[1766141824395,3.5,124.78,124.73,1.91359177]
[1766141824594,3.5,124.77,124.71,0.12]
[1766141825097,3.5,124.77,124.71,6.63293257]
[1766141825504,3.55197117,124.75,124.73,0.00266329]
[1766141834211,0.00197117,124.75,124.73,3.27266329]
[1766141834411,112.2035,124.85,124.74,3.27]
[1766141834412,3.5,124.83,124.74,3.27]
[1766141834718,3.5,124.83,124.76,6.51293257]
[1766141835107,3.5,124.82,124.76,6.51293257]
[1766141835511,0.05202531,124.8,124.78,0.05163354]
[1766141840412,3.55202531,124.8,124.78,0.00163354]
[1766141841616,3.5,124.78,124.69,3.37]
[1766141841818,3.5,124.76,124.69,3.37]
[1766141842520,0.05397114,124.74,124.71,0.05124255]
[1766141850415,0.05397114,124.74,124.71,7.27184255]
[1766141852326,0.05397114,124.74,124.71,0.05124255]
[1766141853328,0.05397114,124.74,124.71,3.42124255]
[1766141854329,3.5,124.77,124.72,9.8638711]
[1766141854731,3.27,124.82,124.74,9.8638711]
[1766141854936,3.27,124.81,124.74,17.0826711]
[1766141855235,0.05064198,124.79,124.76,0.05133284]
[1766141855736,50.53,124.83,124.77,3.35]
[1766141856231,50.53,124.83,124.77,10.5672]
[1766141856436,3.27,124.82,124.77,10.5672]
[1766141856733,0.05643945,124.81,124.78,0.0514073]
[1766141862540,3.32643945,124.81,124.78,0.0514073]
[1766141862736,3.32643945,124.81,124.78,0.0014073]
[1766141867536,10.54163945,124.81,124.78,0.0014073]
[1766141867739,3.27,124.8,124.78,0.0014073]
[1766141872442,0.05643945,124.81,124.78,3.3514073]
[1766141873751,0.05643945,124.81,124.78,0.0014073]
[1766141879745,0.05643945,124.81,124.78,3.3514073]
[1766141881150,0.05643945,124.81,124.78,0.0014073]
[1766141881558,3.32643945,124.81,124.78,0.0014073]
[1766141882648,10.54133945,124.81,124.78,0.0014073]
[1766141882953,3.32643945,124.81,124.78,0.0014073]
[1766141883650,0.05643945,124.81,124.78,0.0014073]
[1766141888157,3.46,124.79,124.78,0.0014073]
[1766141888365,3.46,124.78,124.7,3.23]
[1766141889465,0.05854201,124.75,124.73,0.0528104]
[1766141891362,3.46,124.78,124.73,3.2828104]
[1766141892373,0.05924292,124.77,124.73,3.2828104]
[1766141892575,3.51924292,124.77,124.73,0.0528104]
[1766141902873,0.05924292,124.77,124.73,3.4228104]
[1766141903778,0.05924292,124.77,124.73,10.6422104]
[1766141904380,0.05924292,124.77,124.74,3.37]
[1766141906678,3.44,124.8,124.74,3.37]
[1766141907681,0.05087555,124.78,124.76,0.05642266]
[1766141915192,0.00087555,124.78,124.76,0.05642266]
[1766141924403,0.00087555,124.78,124.76,3.53642266]
[1766141942712,6.51641207,124.78,124.74,3.48]
[1766141943015,6.51641207,124.78,124.72,10.96043746]
[1766141943016,9.70641207,124.78,124.72,10.96043746]
[1766141943413,9.70641207,124.78,124.73,3.48]
[1766141943605,16.92311207,124.78,124.73,3.48]
[1766141943803,16.92311207,124.78,124.74,0.06041167]
[1766141946520,9.70641207,124.78,124.74,0.06041167]
[1766141947422,3.19087555,124.78,124.74,0.06041167]
[1766141948409,0.00087555,124.78,124.75,3.19]
[1766141960830,3.40087555,124.78,124.74,0.06041167]
[1766141975742,3.24,124.76,124.74,0.00041167]
[1766141975949,3.24,124.76,124.7,3.27]
[1766141976958,0.05504167,124.74,124.72,0.05923296]
[1766141979154,3.29504167,124.74,124.69,9.11264648]
[1766141979658,3.29504167,124.74,124.69,5.16134648]
[1766141980262,3.29504167,124.74,124.7,0.05777887]
[1766141987463,3.24,124.72,124.67,3.27]
[1766141988261,0.05141155,124.71,124.68,0.05827856]
[1766141991965,0.05141155,124.71,124.68,3.32827856]
[1766141994968,3.24,124.77,124.7,3.27]
[1766141995170,3.24,124.79,124.73,9.79113764]
[1766141995364,3.24,124.79,124.73,3.27]
[1766141996071,0.05965819,124.77,124.75,0.06136765]
[1766142006584,3.27,124.79,124.75,0.06136765]
[1766142007376,7.2148,124.82,124.75,3.52136765]
[1766142007577,0.05760696,124.8,124.77,0.06023352]
[1766142007782,0.05760696,124.8,124.77,3.52023352]
[1766142012088,0.05760696,124.8,124.77,0.06023352]
[1766142020475,0.05760696,124.8,124.77,3.43023352]
[1766142020679,17.39510981,124.85,124.77,3.43023352]
[1766142020680,3.5,124.84,124.77,3.43023352]
[1766142020888,3.5,124.84,124.77,3.37]
[1766142021681,0.05715219,124.82,124.79,3.43126864]
[1766142023176,0.05715219,124.82,124.79,10.64726864]
[1766142031994,3.55715219,124.82,124.79,0.06126864]
[1766142033689,3.55715219,124.82,124.77,3.37]
[1766142034682,3.55715219,124.82,124.78,0.05483394]
[1766142044407,0.05715219,124.82,124.78,3.40483394]
[1766142044697,10.5929,124.85,124.78,3.40483394]
[1766142044888,3.38,124.85,124.78,3.40483394]
[1766142045690,3.44059304,124.83,124.74,10.83015341]
[1766142045895,3.38,124.81,124.74,3.35]
[1766142046503,3.38,124.8,124.72,19.98147158]
[1766142046707,3.38,124.78,124.71,7.48015341]
[1766142046904,3.38,124.76,124.7,50.69]
[1766142047204,3.38,124.76,124.7,3.35]
[1766142047604,3.38,124.76,124.7,10.5712]
[1766142047900,0.05875032,124.74,124.72,0.05399513]
[1766142055302,3.43875032,124.74,124.72,0.00399513]
[1766142058618,0.05875032,124.74,124.72,0.00399513]
[1766142067021,3.36,124.78,124.72,3.44399513]
[1766142068126,0.06012209,124.76,124.72,3.44399513]
[1766142075523,3.36,124.75,124.72,0.00399513]
[1766142076627,3.36,124.74,124.72,0.00399513]
[1766142077024,3.42012209,124.76,124.72,0.00399513]
[1766142085222,9.88196491,124.75,124.72,0.00399513]
[1766142085730,3.36,124.74,124.72,0.00399513]
[1766142090230,3.36,124.74,124.69,7.49249584]
[1766142090430,3.36,124.74,124.67,3.19]
[1766142090431,10.5796,124.73,124.67,3.19]
[1766142091233,0.05066981,124.71,124.69,0.0543565]
[1766142118174,3.32,124.75,124.7,3.24]
[1766142118475,3.32,124.77,124.7,3.24]
[1766142118773,3.32,124.77,124.71,3.24]
[1766142119267,0.05220929,124.75,124.73,0.05920815]
[1766142122569,3.32,124.78,124.73,3.29920815]
[1766142123681,3.3788909,124.77,124.73,0.05920815]
[1766142132387,3.3788909,124.77,124.73,3.32920815]
[1766142132680,0.0588909,124.77,124.73,3.32920815]
[1766142136084,0.0588909,124.77,124.73,10.54860815]
[1766142137081,0.0588909,124.77,124.74,10.4888]
[1766142138285,3.27,124.8,124.75,3.27]
[1766142139277,0.05494371,124.79,124.76,0.05345019]
[1766142139585,3.32494371,124.79,124.76,0.05345019]
[1766142148890,10.54104371,124.79,124.76,0.05345019]
[1766142149089,3.21,124.78,124.73,3.27]
[1766142150192,3.21,124.78,124.74,0.05749262]
[1766142153688,3.21,124.82,124.74,3.32749262]
[1766142153888,3.21,124.82,124.74,3.27]
[1766142154086,3.21,124.82,124.76,3.47]
[1766142154695,3.21,124.82,124.77,3.47]
[1766142154995,0.05955622,124.81,124.78,0.05191435]
[1766142166102,0.05955622,124.81,124.78,3.52191435]
[1766142166299,3.38,124.84,124.79,3.47]
[1766142167191,3.38,124.86,124.81,3.47]
[1766142167499,0.05758033,124.85,124.82,0.05708663]
[1766142168895,0.05758033,124.85,124.82,3.52708663]
[1766142170495,10.5914,124.88,124.82,3.52708663]
[1766142171400,0.05153923,124.86,124.82,3.52708663]
[1766142172598,0.05153923,124.86,124.83,10.6835]
[1766142173303,3.38,124.9,124.84,10.683]
[1766142174107,3.38,124.89,124.82,10.6838]
[1766142174306,3.38,124.91,124.84,3.52587558]
[1766142174607,3.38,124.91,124.84,3.47]
[1766142174997,3.38,124.91,124.85,10.6824]
[1766142175303,0.0244389,124.89,124.87,0.05558305]
[1766142175503,9.88422476,124.94,124.87,3.52558305]
[1766142175699,3.38,124.94,124.87,3.47]
[1766142176309,3.38,124.94,124.89,3.47]
[1766142176512,3.38,124.94,124.86,118.68782476]
[1766142176513,3.38,124.96,124.9,3.52674608]
[1766142177302,3.38,124.98,124.91,3.47]
[1766142177509,3.38,124.98,124.93,0.05725339]
[1766142178211,3.38,124.98,124.93,3.52725339]
[1766142178401,3.38,125.0,124.93,3.52725339]
[1766142178807,47.26,125.01,124.95,3.47]
[1766142179108,3.38,125.0,124.97,0.05968757]
[1766142179504,3.43968757,125.0,124.93,3.47]
[1766142179704,3.38,124.98,124.91,9.97422476]
[1766142180410,9.88422476,124.98,124.91,9.97422476]
[1766142180615,0.05751466,124.96,124.93,0.05466314]
[1766142182512,3.38,125.0,124.94,3.47]
[1766142182818,9.88422476,125.02,124.94,3.47]
[1766142183008,9.88422476,125.02,124.95,3.47]
[1766142183408,9.88422476,125.02,124.97,0.0509578]
[1766142183610,3.38,125.02,124.97,0.0509578]
[1766142188814,3.51,125.01,124.97,0.0509578]
[1766142190011,3.51,125.03,124.97,3.5009578]
[1766142191026,10.00298242,125.03,124.97,3.5009578]
[1766142191222,3.51,125.02,124.97,3.5009578]
[1766142193229,3.51,125.02,124.97,0.0509578]
[1766142195324,3.51,125.04,124.97,3.5009578]
[1766142195521,3.51,125.04,124.99,0.06129379]
[1766142198539,3.51,125.04,124.99,7.26569379]
[1766142200736,3.51,125.04,124.99,0.06129379]
[1766142201236,3.51,125.02,124.99,0.00129379]
[1766142201435,3.51,125.02,124.96,3.45]
[1766142202227,0.05990898,125.0,124.98,0.05872782]
[1766142203431,0.05990898,125.0,124.95,7.2068]
[1766142203632,3.51990898,125.0,124.94,3.48]
[1766142203836,3.46,124.98,124.92,50.78]
[1766142204627,0.05875156,124.96,124.94,0.05924027]
[1766142204837,0.00014988,124.96,124.94,3.54137139]
[1766142205538,0.00014988,124.96,124.94,10.74857139]
[1766142207427,0.00014988,124.96,124.94,7.26857139]
[1766142207627,0.00014988,124.96,124.94,0.06137139]
[1766142213632,0.00014988,124.96,124.9,112.1426]
[1766142213633,3.46014988,124.96,124.9,3.48]
[1766142214549,3.46014988,124.96,124.92,0.05627346]
[1766142217238,3.38,124.95,124.88,4.9706354]
[1766142217439,3.38,124.92,124.88,1.7006354]
[1766142218238,0.05426985,124.91,124.89,0.05496583]
[1766142219848,0.05426985,124.91,124.89,0.00496583]
[1766142220746,3.38,124.9,124.84,3.27]
[1766142221653,3.38,124.9,124.83,6.49298242]
[1766142221850,0.05645017,124.88,124.85,0.05204019]
[1766142225647,9.92943259,124.88,124.85,0.00204019]
[1766142225852,3.38,124.87,124.81,3.27]
[1766142226052,3.38,124.85,124.79,3.27]
[1766142226355,3.38,124.85,124.77,9.76298242]
[1766142226554,3.38,124.85,124.78,3.27]
[1766142226754,0.05343969,124.83,124.8,0.05639265]
[1766142229758,3.43343969,124.83,124.8,0.05639265]
[1766142230048,3.38,124.81,124.74,3.27]
[1766142230857,3.38,124.81,124.76,0.05404232]
[1766142231060,0.05151109,124.79,124.76,0.05404232]
[1766142238065,0.05151109,124.79,124.76,10.54164232]
[1766142238566,0.00151109,124.79,124.76,10.54164232]
[1766142238870,3.38,124.83,124.76,10.54164232]
[1766142239767,0.05889918,124.81,124.76,10.54164232]
[1766142243368,3.38,124.85,124.78,3.27]
[1766142243672,7.2124,124.86,124.78,3.27]
[1766142243673,10.5924,124.86,124.78,3.27]
[1766142243970,3.38,124.86,124.8,10.4151]
[1766142244165,3.37,124.88,124.81,3.2]
[1766142244363,50.63,124.91,124.83,3.26148053]
[1766142244564,50.63,124.91,124.83,3.2]
[1766142244974,57.8395,124.91,124.83,10.4135]
[1766142245177,3.37,124.91,124.84,3.2]
[1766142245564,10.5784,124.93,124.86,3.25444126]
[1766142245760,3.37,124.93,124.86,3.2]
[1766142246365,3.37,124.93,124.86,10.4119]
[1766142246566,0.05358751,124.91,124.88,0.05758587]
[1766142251077,3.37,124.95,124.88,3.25758587]
[1766142251281,3.37,124.97,124.9,3.2]
[1766142252182,0.0521593,124.95,124.92,3.26059173]
[1766142253274,0.0521593,124.95,124.92,0.06059173]
[1766142255776,3.37,124.99,124.92,3.26059173]
[1766142255976,3.37,124.99,124.92,3.2]
[1766142256688,3.37,124.98,124.94,0.06155867]
[1766142271794,3.37,124.98,124.89,3.26]
[1766142271993,3.35,124.97,124.89,3.26]
[1766142272899,0.06013723,124.94,124.92,0.0589679]
[1766142273497,0.06013723,124.94,124.89,3.26]
[1766142274293,3.27013723,124.94,124.87,3.26]
[1766142274495,3.21,124.94,124.89,0.05091251]
[1766142274700,0.05383654,124.92,124.89,0.05091251]
[1766142274994,3.26383654,124.92,124.85,3.26]
[1766142275188,3.21,124.92,124.85,3.26]
[1766142276102,0.05115514,124.9,124.87,0.06045837]
[1766142283305,0.05115514,124.9,124.87,3.32045837]
[1766142285203,3.21,124.94,124.87,3.32045837]
[1766142286209,0.05392829,124.92,124.87,3.32045837]
[1766142291103,0.05392829,124.92,124.87,10.53175837]
[1766142291408,0.00392829,124.92,124.88,3.26]
[1766142291605,3.21,125.0,124.92,3.26]
[1766142292001,3.21,124.99,124.92,3.26]
[1766142292610,0.05088046,124.97,124.94,0.05441057]
[1766142296512,58.75108292,125.01,124.94,0.05441057]
[1766142296513,7.2037,125.01,124.94,3.31441057]
[1766142296818,3.21,125.05,124.96,3.26]
[1766142297119,3.21,125.04,124.96,3.26]
[1766142297615,3.21,125.0,124.94,3.26]
[1766142297817,3.21,125.0,124.92,3.26]
[1766142298213,3.21,124.96,124.89,7.42118837]
[1766142298414,3.21,124.95,124.89,7.42118837]
[1766142298618,0.0511427,124.93,124.91,0.05679598]
[1766142300526,9.7113877,124.91,124.84,10.68118837]
[1766142300819,9.7113877,124.89,124.82,9.7613877]
[1766142301321,3.21,124.89,124.83,3.26]
[1766142301522,0.05684255,124.87,124.84,0.05464488]
[1766142301719,0.05684255,124.87,124.84,3.31464488]
[1766142302026,3.21,124.91,124.85,3.26]
[1766142302923,0.05077873,124.89,124.87,0.05482837]
[1766142303316,3.21,124.93,124.87,3.31482837]
[1766142303512,3.21,124.95,124.87,3.26]
[1766142303721,3.21,124.95,124.89,3.26]
[1766142304323,0.0350786,124.93,124.91,0.05897091]
[1766142310630,3.45,124.99,124.92,3.29]
[1766142311635,3.45,124.99,124.94,0.05205005]
[1766142311827,3.45,124.97,124.9,3.29]
[1766142312933,0.05205005,124.95,124.92,0.05988498]
[1766142321541,3.53205005,124.95,124.88,3.25]
[1766142322540,3.53205005,124.95,124.86,3.25]
[1766142322541,9.9813877,124.92,124.86,3.25]
[1766142322745,9.9813877,124.9,124.84,3.25]
[1766142323146,3.24,124.89,124.82,3.24]
[1766142323552,10.4516,124.87,124.8,56.62457238]
[1766142323751,0.05882544,124.86,124.8,52.44338401]
[1766142324651,0.05882544,124.86,124.82,0.05545674]
[1766142334171,3.49882544,124.86,124.82,0.05545674]
[1766142334366,10.00878991,124.86,124.82,0.05545674]
[1766142334574,9.94996447,124.84,124.78,3.4]
[1766142334965,3.44,124.84,124.78,3.4]
[1766142335273,9.94996447,124.86,124.78,3.4]
[1766142335475,0.00049429,124.83,124.81,0.05353906]
[1766142336561,10.6512,124.88,124.82,3.4]
[1766142337072,10.6501,124.9,124.82,3.4]
[1766142337464,0.06015134,124.87,124.85,0.05576705]
[1766142337967,0.00015134,124.87,124.85,0.05576705]
[1766142339875,0.00015134,124.87,124.81,3.4]
[1766142340970,0.00015134,124.87,124.83,0.05685297]
[1766142343565,10.65165134,124.87,124.83,0.05685297]
[1766142343771,9.95011581,124.87,124.83,0.05685297]
[1766142344576,7.212,124.86,124.83,0.05685297]
[1766142345885,10.652,124.86,124.83,0.05685297]
[1766142346372,57.912,124.86,124.83,0.05685297]
[1766142346569,7.2126,124.85,124.79,3.4]
[1766142346768,7.2126,124.85,124.77,13.72666447]
[1766142346769,3.44,124.84,124.77,9.90996447]
[1766142346976,3.44,124.84,124.78,3.4]
[1766142347685,0.05337025,124.82,124.8,0.05171957]
[1766142347879,0.05337025,124.82,124.8,0.00171957]
[1766142348380,0.05337025,124.82,124.76,3.4]
[1766142348980,0.05337025,124.82,124.77,3.4]
[1766142349379,0.05337025,124.82,124.78,0.05751257]
[1766142349773,0.05337025,124.82,124.78,3.45751257]
[1766142350178,13.72306447,124.85,124.79,3.4]
[1766142350374,7.2131,124.85,124.79,3.4]
[1766142351281,0.06062661,124.83,124.81,0.0567013]
[1766142355086,50.7,124.86,124.81,0.0567013]
[1766142355794,47.26,124.86,124.81,3.4567013]
[1766142355980,0.05802421,124.85,124.81,3.4567013]
[1766142356286,0.05802421,124.85,124.81,9.96666577]
[1766142357579,3.44,124.88,124.82,3.4]
[1766142358591,0.06147898,124.86,124.84,0.05077834]
[1766142363589,0.00147898,124.86,124.84,3.45077834]
[1766142363792,54.47,124.9,124.84,3.45077834]
[1766142364091,57.83,124.9,124.84,3.45077834]
[1766142364795,0.055128,124.88,124.84,3.45077834]
[1766142365391,1.37750693,124.93,124.85,3.51]
[1766142365586,3.36,124.94,124.85,3.51]
[1766142365896,10.5677,124.94,124.87,3.51]
[1766142366286,0.03734322,124.92,124.89,0.05404686]
[1766142367088,47.26,124.95,124.89,3.56404686]
[1766142367696,50.62,124.95,124.89,3.56404686]
[1766142368594,57.827,124.95,124.89,3.56404686]
[1766142374393,7.2052,124.98,124.91,3.51]
[1766142374597,10.5652,124.98,124.93,0.05850066]
[1766142375090,3.36,124.97,124.93,0.05850066]
[1766142379595,3.36,124.96,124.91,3.51]
[1766142379803,50.6,124.96,124.88,7.2105]
[1766142380402,3.36,124.98,124.88,122.3339169]
[1766142380602,0.05536286,124.94,124.92,0.05433478]
[1766142380804,3.36,124.98,124.92,0.05433478]
[1766142385710,3.3,125.0,124.93,3.29]
[1766142385905,3.3,125.0,124.95,0.05203839]
[1766142387210,13.4669169,125.0,124.95,0.05203839]
[1766142387407,3.3,124.99,124.95,0.05203839]
[1766142391816,3.3,124.97,124.91,3.29]
[1766142392111,115.3465,125.02,124.91,3.29]
[1766142392310,3.3,124.99,124.91,3.29]
[1766142392914,0.05517619,124.96,124.94,0.0517436]
[1766142394303,3.44,125.03,124.95,3.54]
[1766142395213,3.44,125.03,124.98,0.05843291]
[1766142400323,3.44,125.02,124.98,0.05843291]
[1766142400929,3.44,125.02,124.94,7.2069]
[1766142400930,3.44,125.0,124.93,3.54]
[1766142401625,10.6452,124.98,124.91,3.54]
[1766142401834,3.44,124.97,124.91,3.54]
[1766142402128,3.44,124.97,124.93,0.05503244]
[1766142402129,0.05843291,124.95,124.93,0.05503244]
[1766142404821,3.44,124.99,124.93,3.59503244]
[1766142410839,10.6445,124.99,124.93,3.59503244]
[1766142417458,3.44,124.98,124.93,3.59503244]
[1766142422645,10.6451,124.98,124.93,0.05503244]
[1766142422845,9.93696355,124.97,124.93,0.05503244]
[1766142423048,9.93696355,124.97,124.94,0.05865516]
[1766142423349,17.14266355,124.97,124.94,0.05865516]
[1766142423652,3.44,124.99,124.94,0.05865516]
[1766142427454,3.44,124.99,124.94,3.70865516]
[1766142431563,3.69,124.98,124.94,0.05865516]
[1766142431966,10.8958,124.97,124.94,0.05865516]
[1766142432160,3.69,124.95,124.88,11.09182694]
[1766142432354,3.69,124.95,124.88,3.65]
[1766142432553,3.69,124.95,124.89,3.65]
[1766142433363,0.0578992,124.93,124.91,0.0509275]
[1766142438273,0.0578992,124.93,124.91,0.0009275]
[1766142438274,3.7478992,124.93,124.91,0.0009275]
[1766142443275,3.7478992,124.93,124.87,10.8614]
[1766142444370,3.7478992,124.93,124.89,0.05459785]
[1766142448375,0.0578992,124.93,124.89,11.19479785]
[1766142449376,3.83,124.91,124.85,11.37182694]
[1766142449579,3.83,124.91,124.85,3.93]
[1766142449875,3.83,124.91,124.85,7.2123]
[1766142450373,0.05180105,124.89,124.87,0.06012709]
[1766142450574,0.05180105,124.89,124.87,0.00012709]
[1766142453479,3.83,124.92,124.87,0.00012709]
[1766142454385,0.05266809,124.91,124.87,0.00012709]
[1766142454681,0.05266809,124.91,124.87,7.21152709]
[1766142458383,0.05266809,124.91,124.87,0.00012709]
[1766142460974,0.05266809,124.91,124.87,4.14012709]
[1766142462589,0.05266809,124.91,124.88,11.3507]
[1766142466692,0.00266809,124.91,124.88,11.3507]
[1766142475395,0.00266809,124.91,124.89,4.14]
[1766142476999,0.00266809,124.91,124.87,11.35152709]
[1766142480900,0.00266809,124.91,124.88,11.3508]
[1766142481105,0.00266809,124.91,124.89,4.14]
[1766142482697,0.00266809,124.91,124.89,11.3502]
[1766142484709,0.00266809,124.91,124.89,4.14]
[1766142488213,0.00266809,124.91,124.87,11.33432465]
[1766142488595,0.00266809,124.91,124.87,3.89012709]
[1766142494505,4.00266809,124.91,124.87,0.00012709]
[1766142494711,4.0,124.9,124.87,0.00012709]
[1766142495599,11.21,124.9,124.87,0.00012709]
[1766142497914,4.0,124.9,124.87,0.00012709]
[1766142502914,11.2097,124.9,124.87,0.00012709]
[1766142507321,11.5203,124.89,124.84,3.89]
[1766142508221,4.31,124.88,124.82,11.39419756]
[1766142508409,0.05549514,124.86,124.84,0.05448541]
[1766142512224,7.2103,124.89,124.84,4.00448541]
[1766142512419,11.5203,124.89,124.84,4.00448541]
[1766142513219,0.05452186,124.88,124.84,4.00448541]
[1766142514228,0.05452186,124.88,124.84,11.21748541]
[1766142515225,4.09,124.93,124.85,4.08]
[1766142515425,4.09,124.93,124.86,4.08]
[1766142516115,4.09,124.92,124.86,11.2918]
[1766142516311,4.09,124.92,124.88,0.05475712]
[1766142519414,11.2986,124.92,124.88,0.05475712]
[1766142526324,4.09,124.91,124.88,0.05475712]
[1766142528725,58.5578,124.94,124.88,4.13475712]
[1766142528931,4.09,124.93,124.88,4.13475712]
[1766142534042,47.24,124.94,124.89,4.08]
[1766142534339,11.2966,124.96,124.89,4.08]
[1766142534540,11.2966,124.96,124.91,0.05112948]
[1766142538632,4.09,124.95,124.91,0.05112948]
[1766142543044,11.2969,124.95,124.91,0.05112948]
[1766142549346,4.09,124.95,124.91,0.05112948]
[1766142550050,4.22,124.93,124.88,4.1]
[1766142550240,4.22,124.93,124.86,4.1]
[1766142550842,4.22,124.92,124.86,4.1]
[1766142551041,0.05858222,124.9,124.88,0.05370049]
[1766142552849,0.05858222,124.9,124.84,7.44419756]
[1766142552850,4.22,124.89,124.84,7.44419756]
[1766142553051,4.22,124.89,124.8,4.1]
[1766142553950,0.05155446,124.86,124.83,0.05571276]
[1766142554148,4.27155446,124.86,124.83,0.05571276]
[1766142557346,4.27155446,124.86,124.8,11.3153]
[1766142557553,4.27155446,124.86,124.8,7.2153]
[1766142558350,4.27155446,124.86,124.82,0.06088188]
[1766142560250,0.05155446,124.86,124.82,4.25088188]
[1766142561849,4.22155446,124.86,124.82,0.06088188]
[1766142570754,0.05155446,124.86,124.82,4.25088188]